bitfinex/quotes_SOLUSD_20241121
["timestamp","ask_amount","ask_price","bid_price","bid_amount"]
[1732190199989,4.1642,240.14,240.08,14.97048833]
[1732190200293,21.95166227,240.15,240.0,575.97048833]
[1732190200294,34.64998833,240.15,240.03,20.0]
[1732190200584,19.6795,240.15,240.09,14.97048833]
[1732190201084,19.6795,240.15,240.11,14.97048833]
[1732190201269,19.6795,240.15,240.01,43.776884]
[1732190201481,19.6795,240.15,240.1,14.97048833]
[1732190201871,15.5154,240.15,240.12,14.97048833]
[1732190205668,6.44359065,240.18,240.14,14.97048833]
[1732190205869,19.33077196,240.2,240.17,20.0]
[1732190206068,6.44359065,240.24,240.19,14.97048833]
[1732190206280,21.9394,240.26,240.17,20.0]
[1732190206281,28.38299065,240.26,240.22,14.97048833]
[1732190207002,27.85766964,240.23,240.11,14.97048833]
[1732190207175,6.44461108,240.19,240.12,20.0]
[1732190207494,21.41509941,240.2,240.12,20.0]
[1732190207691,4.1635,240.18,240.12,20.0]
[1732190208098,10.60811108,240.18,240.12,20.0]
[1732190208490,10.60811108,240.18,240.11,14.97048833]
[1732190208787,10.60811108,240.18,240.12,20.0]
[1732190211694,0.5,240.16,240.01,9.4301464]
[1732190211886,23.776884,240.12,240.01,4.94332115]
[1732190212181,23.776884,240.12,240.03,14.97048833]
[1732190213309,30.22149508,240.12,240.03,14.97048833]
[1732190213875,23.776884,240.1,240.03,14.97048833]
[1732190214503,4.1647,240.11,240.03,14.97048833]
[1732190214801,4.1647,240.11,240.04,9.58195611]
[1732190216096,4.1651,240.09,240.04,9.58195611]
[1732190216275,3.06780192,240.08,240.04,9.58195611]
[1732190216478,3.06780192,240.08,240.0,561.0]
[1732190216479,3.06780192,240.07,240.06,9.58195611]
[1732190217583,3.06780192,240.07,240.01,20.0]
[1732190217848,3.06780192,240.06,240.01,20.0]
[1732190218103,3.06780192,240.05,240.01,20.0]
[1732190218294,3.06780192,240.04,240.01,20.0]
[1732190218497,3.06780192,240.03,240.0,599.32782444]
[1732190218679,3.06780192,240.02,240.01,20.0]
[1732190219089,3.06780192,240.02,240.01,29.58195611]
[1732190222003,3.06780192,240.02,240.0,561.0]
[1732190222004,7.23410192,240.02,240.0,561.0]
[1732190222191,4.1663,240.02,240.01,9.58195611]
[1732190222388,3.06454128,240.02,240.0,561.0]
[1732190222589,3.06454128,240.01,240.0,561.0]
[1732190223992,26.84142528,240.01,240.0,542.33011129]
[1732190224199,50.77082528,240.01,240.0,468.16618684]
[1732190224387,37.42338139,240.01,240.0,186.97197616]
[1732190224581,37.42338139,240.01,240.0,116.98725024]
[1732190224582,32.32437996,240.01,240.0,116.98725024]
[1732190224786,32.32437996,240.01,240.0,16.98757309]
[1732190225002,1.0,239.99,239.86,15.00189179]
[1732190225206,15.00189179,239.94,239.76,1.6683]
[1732190225410,4.1678,239.93,239.85,15.00189179]
[1732190225814,4.1678,239.93,239.87,15.00189179]
[1732190226006,3.75132422,239.93,239.87,15.00189179]
[1732190227112,15.50189179,239.92,239.74,1.6684]
[1732190227409,4.1682,239.91,239.82,15.00189179]
[1732190227615,15.00189179,239.9,239.82,15.00189179]
[1732190227913,14.5887,239.91,239.82,15.00189179]
[1732190228106,14.5887,239.91,239.84,15.00189179]
[1732190228407,4.1682,239.91,239.84,15.00189179]
[1732190228800,4.1682,239.91,239.86,15.00189179]
[1732190228982,4.1682,239.91,239.84,15.00189179]
[1732190229505,4.1678,239.93,239.84,15.00189179]
[1732190229809,14.5875,239.93,239.84,15.00189179]
[1732190230309,4.1678,239.93,239.84,15.00189179]
[1732190230509,4.1678,239.93,239.88,15.00189179]
[1732190230711,4.1678,239.93,239.9,15.00189179]
[1732190230911,4.1678,239.93,239.83,23.776884]
[1732190231112,4.1678,239.93,239.89,15.00189179]
[1732190231605,4.1671,239.97,239.91,15.00189179]
[1732190231805,4.1671,239.97,239.93,15.00189179]
[1732190232223,4.1671,239.97,239.91,15.00189179]
[1732190232608,4.1668,239.99,239.91,15.00189179]
[1732190233124,15.00189179,239.98,239.89,15.00189179]
[1732190234332,15.00189179,239.96,239.87,15.00189179]
[1732190235033,14.585,239.97,239.87,15.00189179]
[1732190235034,15.00189179,239.94,239.87,15.00189179]
[1732190235242,15.00189179,239.94,239.85,15.00189179]
[1732190236308,14.5875,239.93,239.85,15.00189179]
[1732190237629,15.00189179,239.92,239.83,15.00189179]
[1732190238012,15.00189179,239.9,239.83,15.00189179]
[1732190238210,4.1685,239.89,239.83,15.00189179]
[1732190240210,15.00189179,239.92,239.83,15.00189179]
[1732190240410,4.1682,239.91,239.83,15.00189179]
[1732190242232,15.00189179,239.9,239.78,1.6681]
[1732190242447,4.1682,239.91,239.8,15.00189179]
[1732190242448,15.00189179,239.88,239.8,15.00189179]
[1732190242729,15.00189179,239.9,239.82,15.00189179]
[1732190243220,15.00189179,239.86,239.76,6.3419]
[1732190243535,15.00189179,239.87,239.78,15.00189179]
[1732190243728,15.00189179,239.85,239.78,15.00189179]
[1732190244233,15.00189179,239.85,239.76,15.00189179]
[1732190244440,14.593,239.84,239.76,15.00189179]
[1732190244627,14.593,239.84,239.78,9.6033114]
[1732190245140,9.6033114,239.81,239.69,1.0]
[1732190245317,9.6033114,239.81,239.72,9.6033114]
[1732190246723,9.6033114,239.79,239.69,1.0]
[1732190247039,14.5954,239.8,239.72,9.6033114]
[1732190247236,14.5954,239.8,239.69,1.0]
[1732190247430,14.5954,239.8,239.72,9.6033114]
[1732190247631,4.1701,239.8,239.76,9.6033114]
[1732190247888,9.6033114,239.87,239.69,6.8407]
[1732190248033,0.5,239.93,239.79,9.6033114]
[1732190248034,10.4212,239.9,239.79,9.6033114]
[1732190248542,10.4212,239.9,239.77,15.4553]
[1732190248843,25.42183296,239.9,239.81,15.00063296]
[1732190249641,25.42183296,239.9,239.71,0.5]
[1732190249642,15.00063296,239.83,239.74,15.00063296]
[1732190250235,0.5,239.87,239.72,15.00063296]
[1732190250236,15.00063296,239.81,239.72,15.00063296]
[1732190250936,4.1701,239.8,239.72,15.00063296]
[1732190251252,14.5954,239.8,239.74,15.00063296]
[1732190252450,10.4253,239.8,239.74,15.00063296]
[1732190252743,4.1697,239.82,239.76,15.00063296]
[1732190253329,4.1697,239.82,239.78,15.00063296]
[1732190253723,14.5919,239.86,239.78,15.00063296]
[1732190254246,4.169,239.86,239.82,15.00063296]
[1732190255049,25.42153296,239.91,239.82,15.00063296]
[1732190255389,4.1684,239.9,239.79,23.776884]
[1732190255521,4.1684,239.9,239.81,15.00063296]
[1732190255721,4.1684,239.9,239.83,15.00063296]
[1732190256248,4.1684,239.9,239.81,15.00063296]
[1732190256747,4.1684,239.9,239.83,15.00063296]
[1732190261674,4.1684,239.9,239.88,15.00063296]
[1732190262151,4.1677,239.94,239.88,15.00063296]
[1732190262347,4.1677,239.94,239.81,23.776884]
[1732190262556,4.1677,239.94,239.91,15.00063296]
[1732190263368,4.1677,239.94,239.88,16.5316]
[1732190263369,4.1677,239.94,239.89,15.00063296]
[1732190263577,4.1671,239.97,239.89,15.00063296]
[1732190264771,15.00063296,239.96,239.89,15.00063296]
[1732190264951,15.00063296,239.96,239.88,16.5316]
[1732190265778,15.00063296,239.94,239.85,15.00063296]
[1732190266081,15.00063296,239.92,239.83,15.00063296]
[1732190266769,4.1682,239.91,239.83,15.00063296]
[1732190266979,4.1682,239.91,239.82,16.5236]
[1732190266980,4.1682,239.91,239.87,15.00063296]
[1732190267269,4.1682,239.91,239.85,15.00063296]
[1732190269369,4.1682,239.91,239.87,15.00063296]
[1732190269780,4.1682,239.91,239.89,15.00063296]
[1732190270152,4.1682,239.91,239.83,27.946484]
[1732190270153,4.1682,239.91,239.87,15.00063296]
[1732190271374,14.5869,239.94,239.87,15.00063296]
[1732190272974,4.1682,239.91,239.87,15.00063296]
[1732190273156,6.44461108,239.89,239.87,15.00063296]
[1732190273774,4.1682,239.91,239.87,15.00063296]
[1732190273775,12.88922216,239.9,239.87,15.00063296]
[1732190273957,15.73519483,239.9,239.87,15.00063296]
[1732190274368,15.73779296,239.89,239.87,15.00063296]
[1732190274559,15.73779296,239.89,239.82,15.00063296]
[1732190274560,12.88922216,239.89,239.82,15.00063296]
[1732190274755,6.4589011,239.84,239.8,15.00063296]
[1732190275178,4.1696,239.83,239.8,15.00063296]
[1732190275598,3.07716751,239.82,239.78,15.00063296]
[1732190275757,3.07716751,239.81,239.78,15.00063296]
[1732190275957,3.07716751,239.8,239.78,15.00063296]
[1732190276163,3.07716751,239.79,239.78,15.00063296]
[1732190276860,9.53606861,239.79,239.78,15.00063296]
[1732190277078,4.1704,239.78,239.76,15.00063296]
[1732190277281,3.07716751,239.77,239.76,15.00063296]
[1732190277578,3.07716751,239.77,239.72,8.7565]
[1732190277788,3.07716751,239.76,239.75,15.00063296]
[1732190282190,4.171,239.75,239.73,15.00063296]
[1732190282491,3.07716751,239.74,239.73,15.00063296]
[1732190283381,9.53113528,239.74,239.73,15.00063296]
[1732190286595,3.07716751,239.74,239.73,15.00063296]
[1732190287296,4.1713,239.73,239.71,15.00063296]
[1732190287497,3.07716751,239.72,239.71,15.00063296]
[1732190290298,4.1717,239.71,239.69,16.00063296]
[1732190290507,3.07716751,239.7,239.69,16.00063296]
[1732190292172,3.07716751,239.7,239.69,1.0]
[1732190292376,3.07716751,239.7,239.69,16.00063296]
[1732190293198,3.07716751,239.7,239.65,23.5815]
[1732190293392,4.1719,239.7,239.69,15.00063296]
[1732190293591,7.23599949,239.7,239.69,15.00063296]
[1732190295713,3.06409949,239.7,239.69,38.77751696]
[1732190296403,3.06409949,239.7,239.69,40.02911696]
[1732190297312,6.45396777,239.84,239.72,23.776884]
[1732190297491,4.1698,239.82,239.8,15.00063296]
[1732190298611,4.1692,239.85,239.8,15.00063296]
[1732190299784,10.62316777,239.85,239.8,15.00063296]
[1732190300594,4.1692,239.85,239.8,15.00063296]
[1732190301911,4.1692,239.85,239.82,15.00063296]
[1732190303194,10.62316777,239.85,239.82,15.00063296]
[1732190303800,10.62316777,239.85,239.76,39.87723296]
[1732190303801,4.1692,239.85,239.84,15.00063296]
[1732190304307,10.62296777,239.87,239.84,15.00063296]
[1732190304504,4.169,239.87,239.86,15.00063296]
[1732190307020,4.169,239.87,239.84,15.00063296]
[1732190307193,4.169,239.87,239.82,15.00063296]
[1732190307194,10.62296777,239.87,239.82,15.00063296]
[1732190307395,6.45396777,239.86,239.82,15.00063296]
[1732190308207,6.45396777,239.84,239.78,15.00063296]
[1732190308394,6.45396777,239.83,239.78,15.00063296]
[1732190308797,4.1697,239.82,239.78,15.00063296]
[1732190310404,4.1697,239.82,239.76,23.6254]
[1732190310405,4.1697,239.82,239.76,15.00063296]
[1732190310612,10.62366777,239.82,239.76,15.00063296]
[1732190312618,10.62366777,239.82,239.77,9.60329376]
[1732190314319,6.45396777,239.82,239.81,9.60329376]
[1732190314521,6.45396777,239.85,239.81,33.38017776]
[1732190314824,6.45396777,239.9,239.85,23.776884]
[1732190315021,4.1683,239.91,239.9,14.99149375]
[1732190315320,10.60961338,239.91,239.9,14.99149375]
[1732190315524,4.1683,239.91,239.9,14.99149375]
[1732190321526,10.61544357,239.91,239.9,14.99149375]
[1732190322220,4.1683,239.91,239.9,14.99149375]
[1732190323221,4.1683,239.91,239.83,23.776884]
[1732190323527,4.1683,239.91,239.9,14.99149375]
[1732190324707,6.44714357,239.94,239.9,14.99149375]
[1732190325016,4.1678,239.93,239.92,14.99149375]
[1732190328233,10.4191,239.95,239.92,14.99149375]
[1732190328426,10.4191,239.95,239.94,14.99149375]
[1732190329431,14.5839,239.99,239.94,14.99149375]
[1732190330237,14.5839,239.99,239.86,14.99149375]
[1732190330238,14.99149375,239.96,239.86,14.99149375]
[1732190330539,6.44714357,239.98,239.86,14.99149375]
[1732190330845,14.99149375,239.95,239.86,14.99149375]
[1732190331536,35.4254,239.94,239.86,14.99149375]
[1732190333216,41.37254357,239.94,239.86,14.99149375]
[1732190333544,34.9254,239.94,239.86,14.99149375]
[1732190334324,34.9254,239.94,239.84,14.99149375]
[1732190335336,14.99149375,239.89,239.72,22.9292]
[1732190335537,21.43863732,239.89,239.78,14.99149375]
[1732190335738,14.99149375,239.87,239.78,14.99149375]
[1732190336420,21.43863732,239.89,239.8,14.99149375]
[1732190336626,9.60099334,239.89,239.8,9.60099334]
[1732190336830,16.04813691,239.89,239.8,9.60099334]
[1732190337140,14.5923,239.85,239.78,9.60099334]
[1732190337715,14.5923,239.85,239.8,9.60099334]
[1732190338122,14.5923,239.85,239.82,9.60099334]
[1732190339227,6.44714357,239.9,239.82,9.60099334]
[1732190339429,14.5899,239.89,239.82,9.60099334]
[1732190340042,14.5899,239.89,239.77,23.776884]
[1732190340336,14.5899,239.89,239.82,9.0206]
[1732190340544,14.5899,239.89,239.82,18.62159334]
[1732190341139,14.5899,239.89,239.84,9.60099334]
[1732190341339,16.86854357,239.89,239.84,9.60099334]
[1732190342347,21.03704357,239.89,239.84,9.60099334]
[1732190342550,6.44714357,239.86,239.73,20.0]
[1732190342732,6.44714357,239.85,239.78,9.60099334]
[1732190343348,22.4902155,239.88,239.78,9.60099334]
[1732190343349,6.44714357,239.84,239.78,9.60099334]
[1732190343552,6.44714357,239.84,239.81,9.60099334]
[1732190343736,6.44714357,239.84,239.83,9.60099334]
[1732190343929,6.44714357,239.87,239.83,9.60099334]
[1732190344251,6.44714357,239.87,239.85,9.60099334]
[1732190344424,4.169,239.86,239.85,9.60099334]
[1732190345751,4.169,239.86,239.83,9.60099334]
[1732190346425,4.169,239.86,239.72,32.2696]
[1732190346426,14.593,239.84,239.72,32.2696]
[1732190346627,9.51632157,239.83,239.77,15.00410831]
[1732190346823,6.44714357,239.81,239.77,15.00410831]
[1732190347429,14.593,239.84,239.77,15.00410831]
[1732190347430,12.88922216,239.79,239.77,15.00410831]
[1732190347934,6.43976839,239.78,239.77,15.00410831]
[1732190348335,9.50885993,239.78,239.77,38.78099231]
[1732190348536,6.43976839,239.78,239.77,38.78099231]
[1732190348847,53.66565226,239.89,239.77,38.78099231]
[1732190348848,6.43976839,239.79,239.78,23.776884]
[1732190349053,6.43976839,239.81,239.79,15.00410831]
[1732190349231,6.43976839,239.81,239.8,38.78099231]
[1732190350226,4.1698,239.82,239.8,38.78099231]
[1732190350548,3.07088865,239.81,239.8,38.78099231]
[1732190350744,4.1698,239.82,239.8,38.78099231]
[1732190351040,6.45038682,239.81,239.8,38.78099231]
[1732190351248,4.1698,239.82,239.8,38.78099231]
[1732190351447,4.1698,239.82,239.72,5.7130578]
[1732190351648,4.1698,239.82,239.62,0.1]
[1732190351649,12.88922216,239.74,239.62,0.1]
[1732190351863,6.44884589,239.7,239.69,15.00410831]
[1732190352027,3.07088264,239.7,239.69,15.00410831]
[1732190352228,6.44806505,239.7,239.69,15.00410831]
[1732190352551,6.44875672,239.7,239.69,15.00410831]
[1732190353339,3.0710083,239.7,239.69,0.53858224]
[1732190353527,4.1717,239.71,239.69,0.53858224]
[1732190353935,6.44868813,239.74,239.69,0.53858224]
[1732190354134,6.44868813,239.75,239.73,38.78099231]
[1732190354352,6.44868813,239.77,239.74,23.776884]
[1732190354650,10.61928813,239.78,239.75,15.00410831]
[1732190356144,4.1706,239.78,239.75,15.00410831]
[1732190356355,10.61928813,239.78,239.75,15.00410831]
[1732190356757,4.1706,239.78,239.75,15.00410831]
[1732190357252,6.44868813,239.79,239.75,15.00410831]
[1732190357253,4.1708,239.76,239.75,15.00410831]
[1732190357456,7.2468119,239.76,239.75,15.00410831]
[1732190357751,4.1706,239.78,239.75,15.00410831]
[1732190358833,6.44868813,239.79,239.75,15.00410831]
[1732190359034,4.1707,239.77,239.75,15.00410831]
[1732190360245,6.44868813,239.8,239.75,15.00410831]
[1732190360490,4.1703,239.79,239.78,15.00410831]
[1732190360747,10.62082348,239.79,239.74,15.00410831]
[1732190361250,10.62082348,239.79,239.76,15.00410831]
[1732190361456,10.62082348,239.79,239.65,33.36860224]
[1732190361457,10.62082348,239.79,239.75,15.00410831]
[1732190361634,4.1706,239.77,239.75,15.00410831]
[1732190362149,6.45052348,239.79,239.75,15.00410831]
[1732190362357,10.62092348,239.79,239.75,15.00410831]
[1732190363439,6.45052348,239.76,239.75,23.776884]
[1732190363638,6.45052348,239.79,239.75,71.28899231]
[1732190363844,6.45052348,239.79,239.78,15.00410831]
[1732190365358,9.5282143,239.79,239.78,15.00410831]
[1732190365557,6.45052348,239.79,239.78,15.00410831]
[1732190366953,12.88922216,239.8,239.74,4.3796]
[1732190367258,6.45216338,239.77,239.76,15.00410831]
[1732190370456,6.45103654,239.77,239.76,15.00410831]
[1732190370936,4.1706,239.78,239.76,15.00410831]
[1732190372561,4.1706,239.78,239.67,4.3809]
[1732190372864,6.45299974,239.75,239.74,9.60472591]
[1732190373668,6.45299974,239.75,239.72,9.60472591]
[1732190373838,10.62399974,239.75,239.72,9.60472591]
[1732190374339,10.62399974,239.75,239.73,9.60472591]
[1732190375055,6.45299974,239.74,239.73,9.60472591]
[1732190375255,6.45299974,239.75,239.73,9.60472591]
[1732190375440,6.45299974,239.77,239.75,23.776884]
[1732190375640,6.45299974,239.78,239.76,9.60472591]
[1732190375949,6.45299974,239.78,239.77,9.60472591]
[1732190376541,6.45299974,239.79,239.77,9.60472591]
[1732190376751,6.45299974,239.79,239.78,14.99974716]
[1732190377165,6.45299974,239.81,239.78,14.99974716]
[1732190377465,10.62289974,239.81,239.73,1.2513]
[1732190377764,6.45299974,239.8,239.78,14.99974716]
[1732190378543,12.88922216,239.8,239.78,14.99974716]
[1732190378744,4.1703,239.79,239.78,14.99974716]
[1732190378957,15.73459703,239.8,239.78,14.99974716]
[1732190378958,4.1701,239.8,239.78,14.99974716]
[1732190379246,6.45112325,239.79,239.78,14.99974716]
[1732190379448,17.05902216,239.82,239.7,3.1289]
[1732190379449,12.88922216,239.81,239.7,3.1289]
[1732190379646,12.88922216,239.81,239.7,8.83640224]
[1732190379647,6.45084352,239.78,239.7,8.83640224]
[1732190380247,6.45084352,239.78,239.71,20.0]
[1732190380447,6.45084352,239.78,239.74,0.5]
[1732190380648,6.45084352,239.8,239.78,25.027984]
[1732190380854,6.45084352,239.82,239.8,38.77663116]
[1732190381057,6.45084352,239.82,239.81,23.776884]
[1732190381460,6.4550285,239.84,239.81,23.776884]
[1732190381748,6.4550285,239.84,239.83,38.77663116]
[1732190382175,12.88922216,239.86,239.83,38.77663116]
[1732190382365,15.73601584,239.86,239.85,14.99974716]
[1732190383272,6.45672219,239.86,239.85,0.54213189]
[1732190383576,4.1689,239.87,239.85,0.54213189]
[1732190383754,10.62542219,239.88,239.85,0.54213189]
[1732190383954,6.45672219,239.87,239.85,0.54213189]
[1732190384356,10.62542219,239.88,239.85,0.54213189]
[1732190385655,6.45672219,239.88,239.87,14.99974716]
[1732190385976,6.45672219,239.89,239.88,23.776884]
[1732190386357,6.45672219,239.9,239.88,23.776884]
[1732190386673,6.45672219,239.9,239.89,38.77663116]
[1732190387078,6.45672219,239.9,239.83,2.0848]
[1732190387252,4.1685,239.89,239.87,14.99974716]
[1732190388168,4.1685,239.89,239.85,14.99974716]
[1732190389863,14.99974716,239.86,239.62,0.6]
[1732190390169,6.44497216,239.75,239.69,14.99974716]
[1732190390971,6.44497216,239.74,239.69,14.99974716]
[1732190391363,6.44497216,239.75,239.69,14.99974716]
[1732190391667,6.44497216,239.75,239.71,14.99974716]
[1732190392071,4.1711,239.74,239.71,14.99974716]
[1732190395770,4.1711,239.74,239.7,14.99974716]
[1732190395975,4.1711,239.74,239.72,14.99974716]
[1732190397150,4.1704,239.78,239.72,14.99974716]
[1732190398466,4.1704,239.78,239.7,14.99974716]
[1732190398664,19.17014716,239.78,239.71,23.776884]
[1732190398873,19.17014716,239.78,239.7,14.99974716]
[1732190399083,14.99974716,239.76,239.68,25.0232]
[1732190399265,4.171,239.75,239.68,25.0232]
[1732190399459,4.171,239.75,239.68,40.02294716]
[1732190399859,4.171,239.75,239.7,14.99974716]
[1732190399860,6.44497216,239.74,239.7,14.99974716]
[1732190400369,6.44497216,239.74,239.68,40.02294716]
[1732190400765,10.61597216,239.75,239.7,14.99974716]
[1732190400964,4.171,239.75,239.72,14.99974716]
[1732190402760,4.171,239.75,239.73,23.776884]
[1732190403174,6.44497216,239.78,239.74,14.99974716]
[1732190403357,6.44497216,239.78,239.76,14.99974716]
[1732190403561,4.1703,239.79,239.76,14.99974716]
[1732190403764,10.61497216,239.81,239.79,23.776884]
[1732190403975,4.17,239.81,239.79,23.776884]
[1732190404182,10.61497216,239.81,239.79,23.776884]
[1732190404366,6.44497216,239.82,239.8,14.99974716]
[1732190404679,10.61487216,239.82,239.8,14.99974716]
[1732190404858,10.61487216,239.82,239.79,23.776884]
[1732190405508,10.61487216,239.82,239.78,14.99974716]
[1732190405782,6.44497216,239.81,239.77,23.776884]
[1732190405962,4.1699,239.82,239.77,23.776884]
[1732190405963,10.61487216,239.82,239.79,23.776884]
[1732190406586,10.61457216,239.83,239.81,23.776884]
[1732190406752,6.44497216,239.83,239.81,23.776884]
[1732190406957,6.44497216,239.85,239.83,23.776884]
[1732190407869,10.61427216,239.85,239.83,23.776884]
[1732190408058,4.1693,239.85,239.83,23.776884]
[1732190408570,6.44497216,239.86,239.85,23.776884]
[1732190408772,6.44497216,239.93,239.85,59.27663116]
[1732190408972,6.44497216,239.94,239.93,23.776884]
[1732190409280,6.44497216,239.95,239.93,38.77663116]
[1732190409579,4.1675,239.95,239.93,38.77663116]
[1732190409884,17.05744432,239.95,239.87,49.04084716]
[1732190410084,6.43258698,239.9,239.88,23.776884]
[1732190410291,6.43258698,239.9,239.89,31.28426377]
[1732190410577,6.43258698,239.93,239.87,34.0411]
[1732190410887,4.168,239.92,239.89,14.99974716]
[1732190411083,4.168,239.92,239.87,39.48174716]
[1732190411378,3.03852976,239.91,239.87,14.99974716]
[1732190411582,4.168,239.92,239.87,14.99974716]
[1732190411878,4.168,239.92,239.88,14.99974716]
[1732190411879,25.77988864,239.9,239.88,14.99974716]
[1732190412085,2.83713134,239.89,239.88,14.99974716]
[1732190413012,7.00563134,239.89,239.88,14.99974716]
[1732190413485,17.03679969,239.89,239.88,0.54245243]
[1732190413787,12.86893319,239.9,239.88,0.54245243]
[1732190414273,15.70772327,239.9,239.88,0.54245243]
[1732190414889,4.1685,239.89,239.88,0.54245243]
[1732190415665,17.03723319,239.91,239.88,0.54245243]
[1732190415864,17.03723319,239.91,239.9,14.99974716]
[1732190416077,19.87724527,239.91,239.9,14.99974716]
[1732190416278,12.86893319,239.92,239.91,23.776884]
[1732190416584,2.83970077,239.92,239.91,38.77663116]
[1732190416802,17.03693319,239.93,239.91,38.77663116]
[1732190417174,17.03693319,239.93,239.91,14.99974716]
[1732190418200,12.86893319,239.94,239.91,14.99974716]
[1732190418408,4.1676,239.95,239.93,14.99974716]
[1732190418779,4.1666,240.0,239.93,14.99974716]
[1732190418980,10.4163,240.01,239.97,14.99974716]
[1732190419175,28.60369685,240.0,239.99,14.99974716]
[1732190419382,2.84040313,240.0,239.99,14.99974716]
[1732190419582,28.60369685,240.03,239.99,14.99974716]
[1732190419905,2.84040313,240.02,239.99,14.99974716]
[1732190420081,2.84040313,240.01,239.97,14.99974716]
[1732190420278,12.87628677,239.99,239.97,14.99974716]
[1732190421199,17.04308677,239.99,239.97,14.99974716]
[1732190421502,4.1668,239.99,239.97,14.99974716]
[1732190421884,12.87628677,239.98,239.97,14.99974716]
[1732190422184,17.04308677,239.99,239.97,14.99974716]
[1732190423385,4.1668,239.99,239.98,14.99974716]
[1732190423586,6.99967168,239.99,239.96,14.99974716]
[1732190423803,19.84781038,239.99,239.94,14.99974716]
[1732190424012,6.42472177,239.95,239.94,14.99974716]
[1732190424179,6.42472177,239.97,239.94,14.99974716]
[1732190424609,6.42472177,239.97,239.96,14.99974716]
[1732190424813,10.59182177,239.97,239.96,14.99974716]
[1732190425789,10.59182177,239.97,239.96,38.77663116]
[1732190425997,6.42472177,239.97,239.96,38.77663116]
[1732190426199,6.42472177,239.97,239.96,14.99974716]
[1732190426791,4.1673,239.96,239.93,24.7567]
[1732190427004,6.42472177,239.95,239.93,24.7567]
[1732190427317,6.42472177,239.95,239.88,16.04184716]
[1732190427318,6.42472177,239.95,239.88,39.29664716]
[1732190427609,6.42472177,239.95,239.89,43.776884]
[1732190427784,10.59232177,239.95,239.89,43.776884]
[1732190428418,6.42472177,239.94,239.89,43.776884]
[1732190428591,10.59232177,239.95,239.93,14.99974716]
[1732190428991,6.42472177,239.94,239.93,14.99974716]
[1732190429511,10.59232177,239.95,239.93,14.99974716]
[1732190431106,6.42472177,239.94,239.93,14.99974716]
[1732190431889,6.42472177,239.94,239.89,23.776884]
[1732190432090,6.42472177,239.94,239.92,14.99974716]
[1732190432284,4.1676,239.95,239.92,14.99974716]
[1732190432588,6.42472177,239.94,239.88,14.99974716]
[1732190432915,6.42472177,239.92,239.88,14.99974716]
[1732190433307,6.42472177,239.91,239.86,14.99974716]
[1732190433517,6.42472177,239.9,239.86,14.99974716]
[1732190433810,23.776884,239.86,239.65,1.0431]
[1732190434008,23.776884,239.86,239.64,34.702]
[1732190434009,6.42472177,239.8,239.74,14.99974716]
[1732190434194,6.42472177,239.79,239.64,49.70174716]
[1732190434400,6.42472177,239.76,239.72,14.99974716]
[1732190434589,6.42472177,239.77,239.72,14.99974716]
[1732190434793,10.59552177,239.76,239.72,14.99974716]
[1732190435401,4.1708,239.76,239.72,14.99974716]
[1732190435921,10.59552177,239.76,239.72,14.99974716]
[1732190436509,10.59552177,239.76,239.7,14.99974716]
[1732190436889,6.42472177,239.75,239.7,14.99974716]
[1732190437090,10.59552177,239.76,239.7,14.99974716]
[1732190437395,6.42472177,239.74,239.7,14.99974716]
[1732190437720,6.42472177,239.74,239.7,14.49974716]
[1732190438717,4.1713,239.73,239.7,14.49974716]
[1732190440595,6.42472177,239.71,239.68,14.99974716]
[1732190441008,6.42472177,239.72,239.7,14.99974716]
[1732190441514,10.59602177,239.73,239.7,14.99974716]
[1732190441718,4.1713,239.73,239.72,14.99974716]
[1732190442294,6.38852394,239.76,239.72,14.99974716]
[1732190442634,4.171,239.75,239.74,14.99974716]
[1732190443324,4.171,239.75,239.74,0.5332095]
[1732190443616,4.171,239.75,239.71,14.99974716]
[1732190444203,4.171,239.75,239.7,14.99974716]
[1732190444412,4.1706,239.77,239.73,14.99974716]
[1732190445494,14.5962,239.79,239.75,14.99974716]
[1732190446699,10.4259,239.79,239.75,14.99974716]
[1732190447427,10.55842394,239.81,239.77,14.99974716]
[1732190447608,4.1699,239.81,239.77,14.99974716]
[1732190448830,4.1696,239.83,239.77,14.99974716]
[1732190449014,4.1696,239.83,239.79,14.99974716]
[1732190450106,4.169,239.86,239.79,14.99974716]
[1732190450503,14.99974716,239.85,239.77,14.99974716]
[1732190451807,4.1694,239.84,239.77,14.99974716]
[1732190453027,4.1694,239.84,239.81,14.99974716]
[1732190458134,10.56057066,239.85,239.83,14.99974716]
[1732190460335,6.39127066,239.85,239.81,14.99974716]
[1732190461542,6.39127066,239.85,239.83,14.99974716]
[1732190462334,6.39127066,239.85,239.84,0.4169]